[Event "Titled Tuesday Blitz July 18 Early 2023"]
[White "Leiva, Gianmarco"]
[Black "Tasdogen, Dincer"]
[WhiteFideId "3804399"]
[BlackFideId "6367097"]
[WhiteElo "2740"]
[BlackElo "2947"]
[Result "1/2-1/2"]
[Round "7"]
[TimeControl "180+2"]
[Date "2023.07.18"]
[WhiteClock "0:00:03"]
[BlackClock "0:00:08"]
[Board "12"]

1. d4 {[%clk 0:03:00]}  g6 {[%clk 0:03:00]} 2. e4 {[%clk 0:02:59]}  Bg7 {[%clk 0:03:01]} 3. c3 {[%clk 0:02:59]}  d6 {[%clk 0:03:01]} 4. Nf3 {[%clk 0:03:00]}  Nf6 {[%clk 0:03:01]} 5. Bd3 {[%clk 0:03:00]}  O-O {[%clk 0:03:02]} 6. O-O {[%clk 0:03:01]}  Nc6 {[%clk 0:03:02]} 7. h3 {[%clk 0:03:01]}  e5 {[%clk 0:03:03]} 8. Re1 {[%clk 0:02:58]}  Re8 {[%clk 0:03:02]} 9. Na3 {[%clk 0:02:58]}  a6 {[%clk 0:02:56]} 10. Nc2 {[%clk 0:02:55]}  d5 {[%clk 0:02:39]} 11. Nxe5 {[%clk 0:02:27]}  Nxe5 {[%clk 0:02:27]} 12. dxe5 {[%clk 0:02:27]}  Nxe4 {[%clk 0:02:28]} 13. Bxe4 {[%clk 0:02:15]}  dxe4 {[%clk 0:02:28]} 14. Qxd8 {[%clk 0:02:15]}  Rxd8 {[%clk 0:02:29]} 15. Bf4 {[%clk 0:02:06]}  Re8 {[%clk 0:02:07]} 16. Rxe4 {[%clk 0:01:53]}  Bf5 {[%clk 0:02:08]} 17. Re2 {[%clk 0:01:53]}  Bxc2 {[%clk 0:02:03]} 18. Rxc2 {[%clk 0:01:54]}  Bxe5 {[%clk 0:02:04]} 19. Bxe5 {[%clk 0:01:54]}  Rxe5 {[%clk 0:02:05]} 20. Kf1 {[%clk 0:01:53]}  Rd8 {[%clk 0:02:04]} 21. Re1 {[%clk 0:01:46]}  Red5 {[%clk 0:01:57]} 22. Re7 {[%clk 0:01:44]}  Rc8 {[%clk 0:01:44]} 23. g4 {[%clk 0:01:07]}  Kf8 {[%clk 0:01:33]} 24. Rce2 {[%clk 0:01:07]}  h5 {[%clk 0:01:34]} 25. Kg2 {[%clk 0:01:07]}  b5 {[%clk 0:01:24]} 26. Kg3 {[%clk 0:01:06]}  a5 {[%clk 0:01:08]} 27. f3 {[%clk 0:01:03]}  a4 {[%clk 0:00:59]} 28. gxh5 {[%clk 0:00:51]}  Rxh5 {[%clk 0:00:46]} 29. Rd7 {[%clk 0:00:46]}  Rf5 {[%clk 0:00:45]} 30. Ree7 {[%clk 0:00:46]}  c6 {[%clk 0:00:45]} 31. b4 {[%clk 0:00:43]}  axb3 {[%clk 0:00:36]} 32. axb3 {[%clk 0:00:43]}  Ra8 {[%clk 0:00:33]} 33. Re3 {[%clk 0:00:27]}  Ra3 {[%clk 0:00:29]} 34. b4 {[%clk 0:00:26]}  Ra2 {[%clk 0:00:30]} 35. h4 {[%clk 0:00:25]}  c5 {[%clk 0:00:22]} 36. bxc5 {[%clk 0:00:18]}  Rxc5 {[%clk 0:00:23]} 37. Ree7 {[%clk 0:00:17]}  Rf5 {[%clk 0:00:23]} 38. Rb7 {[%clk 0:00:13]}  Ra3 {[%clk 0:00:23]} 39. Rec7 {[%clk 0:00:13]}  Kg7 {[%clk 0:00:22]} 40. Kg4 {[%clk 0:00:13]}  Ra4+ {[%clk 0:00:21]} 41. Kg3 {[%clk 0:00:13]}  Raf4 {[%clk 0:00:22]} 42. Rxb5 {[%clk 0:00:09]}  Rxf3+ {[%clk 0:00:22]} 43. Kg2 {[%clk 0:00:10]}  Rf2+ {[%clk 0:00:13]} 44. Kg1 {[%clk 0:00:10]}  R5f4 {[%clk 0:00:10]} 45. Rg5 {[%clk 0:00:08]}  Rf1+ {[%clk 0:00:07]} 46. Kg2 {[%clk 0:00:08]}  R4f2+ {[%clk 0:00:07]} 47. Kg3 {[%clk 0:00:07]}  Rc2 {[%clk 0:00:07]} 48. Rc4 {[%clk 0:00:06]}  Rfc1 {[%clk 0:00:06]} 49. h5 {[%clk 0:00:04]}  Rxc3+ {[%clk 0:00:06]} 50. Rxc3 {[%clk 0:00:04]}  Rxc3+ {[%clk 0:00:06]} 51. Kf2 {[%clk 0:00:05]}  Kh6 {[%clk 0:00:06]} 52. Ra5 {[%clk 0:00:02]}  g5 {[%clk 0:00:07]} 53. Rf5 {[%clk 0:00:02]}  Rc7 {[%clk 0:00:05]} 54. Rf6+ {[%clk 0:00:01]}  Kxh5 {[%clk 0:00:05]} 55. Kg3 {[%clk 0:00:01]}  Rc3+ {[%clk 0:00:06]} 56. Kg2 {[%clk 0:00:02]}  Rc2+ {[%clk 0:00:05]} 57. Kg3 {[%clk 0:00:02]}  Rc3+ {[%clk 0:00:06]} 58. Kg2 {[%clk 0:00:03]}  Rc7 {[%clk 0:00:06]} 59. Kg3 {[%clk 0:00:03]}  Re7 {[%clk 0:00:07]} 60. Kf3 {[%clk 0:00:02]}  Rb7 {[%clk 0:00:05]} 61. Kg3 {[%clk 0:00:02]}  Rb3+ {[%clk 0:00:06]} 62. Kg2 {[%clk 0:00:03]}  Kg4 {[%clk 0:00:04]} 63. Rxf7 {[%clk 0:00:03]}  Rb2+ {[%clk 0:00:04]} 64. Kf1 {[%clk 0:00:03]}  Kg3 {[%clk 0:00:05]} 65. Ra7 {[%clk 0:00:02]}  g4 {[%clk 0:00:03]} 66. Ra3+ {[%clk 0:00:01]}  Kh2 {[%clk 0:00:04]} 67. Ra1 {[%clk 0:00:01]}  g3 {[%clk 0:00:03]} 68. Ra8 {[%clk 0:00:01]}  Rb1+ {[%clk 0:00:03]} 69. Ke2 {[%clk 0:00:01]}  g2 {[%clk 0:00:04]} 70. Rh8+ {[%clk 0:00:01]}  Kg1 {[%clk 0:00:05]} 71. Rg8 {[%clk 0:00:02]}  Rb6 {[%clk 0:00:05]} 72. Rg7 {[%clk 0:00:02]}  Rf6 {[%clk 0:00:06]} 73. Rg8 {[%clk 0:00:02]}  Rf4 {[%clk 0:00:06]} 74. Rg6 {[%clk 0:00:01]}  Kh2 {[%clk 0:00:06]} 75. Rh6+ {[%clk 0:00:01]}  Kg3 {[%clk 0:00:06]} 76. Rg6+ {[%clk 0:00:02]}  Rg4 {[%clk 0:00:07]} 77. Rxg4+ {[%clk 0:00:02]}  Kxg4 {[%clk 0:00:07]} 78. Kf2 {[%clk 0:00:02]}  Kh3 {[%clk 0:00:08]} 79. Kg1 {[%clk 0:00:03]}  Kg3 {[%clk 0:00:08]} 1/2-1/2


[Site "https://www.chess.com"]

[Event "Titled Tuesday Blitz July 18 Early 2023"]
[White "Galchenko, Matvey"]
[Black "Zaragatski, Ilja"]
[WhiteFideId "24175480"]
[BlackFideId "4655192"]
[WhiteElo "2877"]
[BlackElo "2634"]
[Result "1-0"]
[Round "7"]
[TimeControl "180+2"]
[Date "2023.07.18"]
[WhiteClock "0:00:10"]
[BlackClock "0:00:00"]
[Board "16"]

1. f4 {[%clk 0:03:00]}  d5 {[%clk 0:02:58]} 2. Nf3 {[%clk 0:02:59]}  Nf6 {[%clk 0:02:58]} 3. g3 {[%clk 0:03:00]}  e6 {[%clk 0:02:59]} 4. Bg2 {[%clk 0:02:59]}  Be7 {[%clk 0:02:59]} 5. O-O {[%clk 0:02:59]}  c5 {[%clk 0:02:59]} 6. d3 {[%clk 0:02:59]}  b5 {[%clk 0:02:58]} 7. a4 {[%clk 0:02:59]}  b4 {[%clk 0:02:59]} 8. c3 {[%clk 0:02:54]}  a5 {[%clk 0:02:51]} 9. e4 {[%clk 0:02:50]}  dxe4 {[%clk 0:02:44]} 10. dxe4 {[%clk 0:02:48]}  Ba6 {[%clk 0:02:36]} 11. Qxd8+ {[%clk 0:02:46]}  Bxd8 {[%clk 0:02:37]} 12. Re1 {[%clk 0:02:45]}  Nc6 {[%clk 0:02:33]} 13. e5 {[%clk 0:02:28]}  Nd5 {[%clk 0:02:32]} 14. Nbd2 {[%clk 0:02:12]}  bxc3 {[%clk 0:02:29]} 15. Ne4 {[%clk 0:02:06]}  cxb2 {[%clk 0:02:17]} 16. Bxb2 {[%clk 0:01:55]}  O-O {[%clk 0:02:07]} 17. Nd6 {[%clk 0:00:59]}  Rb8 {[%clk 0:02:04]} 18. Ba3 {[%clk 0:00:56]}  Ncb4 {[%clk 0:01:59]} 19. Rec1 {[%clk 0:00:49]}  Nd3 {[%clk 0:01:53]} 20. Rc2 {[%clk 0:00:48]}  Bb6 {[%clk 0:01:39]} 21. Nc4 {[%clk 0:00:36]}  Bxc4 {[%clk 0:01:36]} 22. Rxc4 {[%clk 0:00:37]}  Ne3 {[%clk 0:01:36]} 23. Rc3 {[%clk 0:00:34]}  c4 {[%clk 0:01:36]} 24. Bxf8 {[%clk 0:00:17]}  Kxf8 {[%clk 0:01:34]} 25. Rxd3 {[%clk 0:00:07]}  cxd3 {[%clk 0:01:34]} 26. Kh1 {[%clk 0:00:07]}  Rc8 {[%clk 0:01:23]} 27. Rb1 {[%clk 0:00:03]}  Nc4 {[%clk 0:00:28]} 28. Bf1 {[%clk 0:00:03]}  d2 {[%clk 0:00:26]} 29. Bxc4 {[%clk 0:00:03]}  Rxc4 {[%clk 0:00:26]} 30. Nxd2 {[%clk 0:00:03]}  Rc6 {[%clk 0:00:20]} 31. Ne4 {[%clk 0:00:04]}  Ke7 {[%clk 0:00:19]} 32. Nd6 {[%clk 0:00:04]}  Bc7 {[%clk 0:00:16]} 33. Rb7 {[%clk 0:00:04]}  f6 {[%clk 0:00:12]} 34. Nb5 {[%clk 0:00:04]}  Kd8 {[%clk 0:00:12]} 35. exf6 {[%clk 0:00:04]}  gxf6 {[%clk 0:00:12]} 36. Ra7 {[%clk 0:00:05]}  Bb6 {[%clk 0:00:11]} 37. Rxh7 {[%clk 0:00:05]}  Rc4 {[%clk 0:00:10]} 38. Rf7 {[%clk 0:00:04]}  f5 {[%clk 0:00:08]} 39. h4 {[%clk 0:00:03]}  Rxa4 {[%clk 0:00:08]} 40. h5 {[%clk 0:00:04]}  Rb4 {[%clk 0:00:08]} 41. Nd6 {[%clk 0:00:04]}  Rd4 {[%clk 0:00:04]} 42. Nb7+ {[%clk 0:00:03]}  Kc8 {[%clk 0:00:03]} 43. h6 {[%clk 0:00:03]}  Rd1+ {[%clk 0:00:02]} 44. Kg2 {[%clk 0:00:03]}  a4 {[%clk 0:00:01]} 45. h7 {[%clk 0:00:03]}  Bd4 {[%clk 0:00:01]} 46. Nd6+ {[%clk 0:00:04]}  Kd8 {[%clk 0:00:01]} 47. Nb5 {[%clk 0:00:05]}  Bb2 {[%clk 0:00:01]} 48. Ra7 {[%clk 0:00:05]}  Rd2+ {[%clk 0:00:01]} 49. Kf3 {[%clk 0:00:05]}  a3 {[%clk 0:00:02]} 50. Nxa3 {[%clk 0:00:06]}  Rd3+ {[%clk 0:00:02]} 51. Ke2 {[%clk 0:00:06]}  Rxg3 {[%clk 0:00:02]} 52. Nc4 {[%clk 0:00:06]}  Bc3 {[%clk 0:00:03]} 53. Ne5 {[%clk 0:00:07]}  Bxe5 {[%clk 0:00:02]} 54. fxe5 {[%clk 0:00:07]}  Rh3 {[%clk 0:00:03]} 55. h8=Q+ {[%clk 0:00:07]}  Rxh8 {[%clk 0:00:04]} 56. Ra8+ {[%clk 0:00:07]}  Kd7 {[%clk 0:00:05]} 57. Rxh8 {[%clk 0:00:08]}  Kc6 {[%clk 0:00:06]} 58. Ke3 {[%clk 0:00:08]}  Kd5 {[%clk 0:00:07]} 59. Kf4 {[%clk 0:00:09]}  Kd4 {[%clk 0:00:00]} 60. Re8 {[%clk 0:00:10]} 1-0


[Site "https://www.chess.com"]

[Event "Titled Tuesday Blitz July 18 Early 2023"]
[White "Bendayan Claros, Aaron"]
[Black "Bacrot, Etienne"]
[WhiteFideId "3803392"]
[BlackFideId "605506"]
[WhiteElo "2486"]
[BlackElo "2859"]
[Result "0-1"]
[Round "7"]
[TimeControl "180+2"]
[Date "2023.07.18"]
[WhiteClock "0:00:00"]
[BlackClock "0:00:07"]
[Board "17"]

1. d4 {[%clk 0:02:55]}  d5 {[%clk 0:02:59]} 2. Nf3 {[%clk 0:02:54]}  Nf6 {[%clk 0:02:59]} 3. e3 {[%clk 0:02:54]}  e6 {[%clk 0:02:59]} 4. Bd3 {[%clk 0:02:54]}  b6 {[%clk 0:02:59]} 5. Nbd2 {[%clk 0:02:54]}  Bb7 {[%clk 0:03:00]} 6. b3 {[%clk 0:02:54]}  Nbd7 {[%clk 0:03:00]} 7. Bb2 {[%clk 0:02:55]}  Ne4 {[%clk 0:03:00]} 8. O-O {[%clk 0:02:54]}  f5 {[%clk 0:02:57]} 9. Ne5 {[%clk 0:02:54]}  Nxe5 {[%clk 0:02:57]} 10. dxe5 {[%clk 0:02:54]}  Nxd2 {[%clk 0:02:50]} 11. Qxd2 {[%clk 0:02:54]}  Be7 {[%clk 0:02:50]} 12. f4 {[%clk 0:02:54]}  c5 {[%clk 0:02:49]} 13. Bb5+ {[%clk 0:02:52]}  Kf7 {[%clk 0:02:48]} 14. Be2 {[%clk 0:02:50]}  Qc7 {[%clk 0:02:45]} 15. Bf3 {[%clk 0:02:50]}  a5 {[%clk 0:02:41]} 16. c4 {[%clk 0:02:45]}  Rhd8 {[%clk 0:02:38]} 17. cxd5 {[%clk 0:02:44]}  Bxd5 {[%clk 0:02:38]} 18. Qe2 {[%clk 0:02:37]}  Qc6 {[%clk 0:02:25]} 19. Rae1 {[%clk 0:02:21]}  Be4 {[%clk 0:02:09]} 20. Rd1 {[%clk 0:02:13]}  g6 {[%clk 0:02:07]} 21. Rxd8 {[%clk 0:02:12]}  Rxd8 {[%clk 0:02:07]} 22. Rd1 {[%clk 0:02:12]}  Bxf3 {[%clk 0:02:03]} 23. gxf3 {[%clk 0:02:12]}  Rxd1+ {[%clk 0:02:02]} 24. Qxd1 {[%clk 0:02:12]}  c4 {[%clk 0:01:53]} 25. bxc4 {[%clk 0:02:11]}  Qxc4 {[%clk 0:01:53]} 26. Qb3 {[%clk 0:02:07]}  Qxb3 {[%clk 0:00:37]} 27. axb3 {[%clk 0:02:07]}  Ke8 {[%clk 0:00:34]} 28. Kf2 {[%clk 0:02:07]}  Kd7 {[%clk 0:00:35]} 29. Ke2 {[%clk 0:02:07]}  Kc6 {[%clk 0:00:35]} 30. Kd3 {[%clk 0:02:05]}  b5 {[%clk 0:00:36]} 31. Bc3 {[%clk 0:01:53]}  b4 {[%clk 0:00:31]} 32. Bd4 {[%clk 0:01:43]}  Kb5 {[%clk 0:00:31]} 33. e4 {[%clk 0:01:33]}  Bc5 {[%clk 0:00:26]} 34. Bb2 {[%clk 0:01:22]}  Bg1 {[%clk 0:00:20]} 35. h3 {[%clk 0:01:22]}  Bh2 {[%clk 0:00:18]} 36. Bc1 {[%clk 0:01:22]}  Bg3 {[%clk 0:00:14]} 37. Bd2 {[%clk 0:01:13]}  a4 {[%clk 0:00:09]} 38. bxa4+ {[%clk 0:01:14]}  Kxa4 {[%clk 0:00:09]} 39. Kc4 {[%clk 0:01:15]}  b3 {[%clk 0:00:09]} 40. Bc1 {[%clk 0:01:12]}  Bxf4 {[%clk 0:00:08]} 41. Bb2 {[%clk 0:01:08]}  Be3 {[%clk 0:00:09]} 42. exf5 {[%clk 0:01:05]}  gxf5 {[%clk 0:00:09]} 43. Kd3 {[%clk 0:00:57]}  Bc5 {[%clk 0:00:09]} 44. Kc3 {[%clk 0:00:40]}  Ba3 {[%clk 0:00:08]} 45. Ba1 {[%clk 0:00:40]}  h5 {[%clk 0:00:08]} 46. f4 {[%clk 0:00:08]}  Bc1 {[%clk 0:00:08]} 47. Kc4 {[%clk 0:00:09]}  Be3 {[%clk 0:00:08]} 48. Bb2 {[%clk 0:00:05]}  h4 {[%clk 0:00:08]} 49. Ba1 {[%clk 0:00:00]}  Ka3 {[%clk 0:00:07]} 0-1


[Site "https://www.chess.com"]

[Event "Titled Tuesday Blitz July 18 Early 2023"]
[White "Matinian, Nikita"]
[Black "Donchenko, Alexander"]
[WhiteFideId "24129100"]
[BlackFideId "24603295"]
[WhiteElo "2720"]
[BlackElo "2865"]
[Result "1/2-1/2"]
[Round "7"]
[TimeControl "180+2"]
[Date "2023.07.18"]
[WhiteClock "0:00:14"]
[BlackClock "0:00:25"]
[Board "26"]

1. e4 {[%clk 0:02:57]}  c6 {[%clk 0:02:57]} 2. d4 {[%clk 0:02:56]}  d5 {[%clk 0:02:57]} 3. e5 {[%clk 0:02:57]}  Bf5 {[%clk 0:02:57]} 4. Nf3 {[%clk 0:02:58]}  e6 {[%clk 0:02:57]} 5. Be2 {[%clk 0:02:58]}  Ne7 {[%clk 0:02:57]} 6. O-O {[%clk 0:02:58]}  c5 {[%clk 0:02:57]} 7. c4 {[%clk 0:02:56]}  Nbc6 {[%clk 0:02:56]} 8. Nc3 {[%clk 0:02:51]}  Nxd4 {[%clk 0:02:50]} 9. Nxd4 {[%clk 0:02:45]}  cxd4 {[%clk 0:02:51]} 10. Nb5 {[%clk 0:02:44]}  Nc6 {[%clk 0:02:49]} 11. cxd5 {[%clk 0:02:44]}  exd5 {[%clk 0:02:45]} 12. Nxd4 {[%clk 0:02:39]}  Nxd4 {[%clk 0:02:45]} 13. Qxd4 {[%clk 0:02:40]}  Be7 {[%clk 0:02:42]} 14. Bb5+ {[%clk 0:02:38]}  Bd7 {[%clk 0:02:23]} 15. Qxd5 {[%clk 0:02:37]}  a6 {[%clk 0:02:23]} 16. Bxd7+ {[%clk 0:02:29]}  Qxd7 {[%clk 0:02:24]} 17. Qxd7+ {[%clk 0:02:24]}  Kxd7 {[%clk 0:02:25]} 18. Be3 {[%clk 0:02:23]}  Ke6 {[%clk 0:02:24]} 19. f4 {[%clk 0:02:23]}  g6 {[%clk 0:02:22]} 20. Rac1 {[%clk 0:02:20]}  Rac8 {[%clk 0:02:20]} 21. Kf2 {[%clk 0:02:19]}  h5 {[%clk 0:02:17]} 22. Kf3 {[%clk 0:02:16]}  f6 {[%clk 0:02:10]} 23. exf6 {[%clk 0:02:14]}  Bxf6 {[%clk 0:02:11]} 24. b3 {[%clk 0:02:14]}  Rhd8 {[%clk 0:02:09]} 25. Rxc8 {[%clk 0:02:13]}  Rxc8 {[%clk 0:02:10]} 26. Rc1 {[%clk 0:02:13]}  Rxc1 {[%clk 0:02:06]} 27. Bxc1 {[%clk 0:02:14]}  Kd5 {[%clk 0:02:04]} 28. g3 {[%clk 0:02:09]}  Be7 {[%clk 0:02:03]} 29. Bb2 {[%clk 0:02:04]}  Bd8 {[%clk 0:02:03]} 30. h3 {[%clk 0:02:02]}  Be7 {[%clk 0:02:02]} 31. g4 {[%clk 0:02:02]}  hxg4+ {[%clk 0:02:02]} 32. hxg4 {[%clk 0:02:03]}  Ke6 {[%clk 0:01:37]} 33. Ke4 {[%clk 0:02:01]}  Bc5 {[%clk 0:01:35]} 34. f5+ {[%clk 0:01:54]}  gxf5+ {[%clk 0:01:36]} 35. gxf5+ {[%clk 0:01:55]}  Kf7 {[%clk 0:01:36]} 36. Kd5 {[%clk 0:01:55]}  Bb4 {[%clk 0:01:37]} 37. Be5 {[%clk 0:01:47]}  Ba3 {[%clk 0:01:33]} 38. Bd6 {[%clk 0:01:45]}  Bc1 {[%clk 0:01:32]} 39. Be5 {[%clk 0:01:42]}  Ba3 {[%clk 0:01:32]} 40. Bd4 {[%clk 0:01:41]}  Bf8 {[%clk 0:01:32]} 41. a4 {[%clk 0:01:40]}  Be7 {[%clk 0:01:30]} 42. Bc5 {[%clk 0:01:32]}  Bh4 {[%clk 0:01:28]} 43. Kd6 {[%clk 0:01:28]}  Be7+ {[%clk 0:01:27]} 44. Kd5 {[%clk 0:01:28]}  Bh4 {[%clk 0:01:27]} 45. Bb6 {[%clk 0:01:24]}  Be7 {[%clk 0:01:26]} 46. Bd4 {[%clk 0:01:17]}  Ba3 {[%clk 0:01:24]} 47. Bc3 {[%clk 0:01:04]}  Bf8 {[%clk 0:01:23]} 48. b4 {[%clk 0:01:04]}  Be7 {[%clk 0:01:18]} 49. a5 {[%clk 0:01:04]}  Bf8 {[%clk 0:01:17]} 50. Kc4 {[%clk 0:00:57]}  Bd6 {[%clk 0:01:09]} 51. b5 {[%clk 0:00:57]}  axb5+ {[%clk 0:01:01]} 52. Kxb5 {[%clk 0:00:58]}  Bc7 {[%clk 0:01:02]} 53. Bd4 {[%clk 0:00:49]}  Bd8 {[%clk 0:00:58]} 54. Bb6 {[%clk 0:00:49]}  Bg5 {[%clk 0:00:57]} 55. Bc7 {[%clk 0:00:49]}  Be3 {[%clk 0:00:52]} 56. Bd8 {[%clk 0:00:47]}  Bf2 {[%clk 0:00:46]} 57. Kc4 {[%clk 0:00:40]}  Be1 {[%clk 0:00:30]} 58. Kd5 {[%clk 0:00:39]}  Bd2 {[%clk 0:00:29]} 59. Kd4 {[%clk 0:00:24]}  Be1 {[%clk 0:00:28]} 60. Ke4 {[%clk 0:00:24]}  Bd2 {[%clk 0:00:28]} 61. Bb6 {[%clk 0:00:21]}  Be1 {[%clk 0:00:28]} 62. Ke5 {[%clk 0:00:19]}  Bc3+ {[%clk 0:00:28]} 63. Kd5 {[%clk 0:00:18]}  Bd2 {[%clk 0:00:25]} 64. Bd8 {[%clk 0:00:18]}  Be1 {[%clk 0:00:24]} 65. Ke5 {[%clk 0:00:13]}  Bc3+ {[%clk 0:00:24]} 66. Kf4 {[%clk 0:00:13]}  Bd2+ {[%clk 0:00:24]} 67. Kg4 {[%clk 0:00:13]}  Be1 {[%clk 0:00:25]} 68. f6 {[%clk 0:00:14]}  Bxa5 {[%clk 0:00:24]} 69. Bxa5 {[%clk 0:00:13]}  Kxf6 {[%clk 0:00:24]} 70. Kf4 {[%clk 0:00:13]}  b6 {[%clk 0:00:25]} 71. Bxb6 {[%clk 0:00:14]} 1/2-1/2


[Site "https://www.chess.com"]

[Event "Titled Tuesday Blitz July 18 Early 2023"]
[White "Onufrienko, Vladislav"]
[Black "Bortnyk, Olexandr"]
[WhiteFideId "13804332"]
[BlackFideId "14120828"]
[WhiteElo "2621"]
[BlackElo "3018"]
[Result "0-1"]
[Round "7"]
[TimeControl "180+2"]
[Date "2023.07.18"]
[WhiteClock "0:00:07"]
[BlackClock "0:01:36"]
[Board "29"]

1. d4 {[%clk 0:03:00]}  d6 {[%clk 0:03:00]} 2. e4 {[%clk 0:03:00]}  Nf6 {[%clk 0:03:00]} 3. Nc3 {[%clk 0:02:58]}  Nbd7 {[%clk 0:03:00]} 4. f4 {[%clk 0:02:58]}  e5 {[%clk 0:03:00]} 5. Nf3 {[%clk 0:02:58]}  exd4 {[%clk 0:03:00]} 6. Qxd4 {[%clk 0:02:59]}  c6 {[%clk 0:03:01]} 7. Qe3 {[%clk 0:02:27]}  Qb6 {[%clk 0:02:49]} 8. Bd3 {[%clk 0:02:25]}  Nc5 {[%clk 0:02:46]} 9. O-O {[%clk 0:01:59]}  Ng4 {[%clk 0:02:38]} 10. Qd4 {[%clk 0:01:51]}  Nxd3 {[%clk 0:02:31]} 11. Qxb6 {[%clk 0:01:34]}  axb6 {[%clk 0:02:32]} 12. cxd3 {[%clk 0:01:34]}  Be7 {[%clk 0:02:30]} 13. h3 {[%clk 0:01:34]}  Nf6 {[%clk 0:02:30]} 14. Be3 {[%clk 0:01:33]}  b5 {[%clk 0:02:30]} 15. a3 {[%clk 0:01:33]}  O-O {[%clk 0:02:29]} 16. Nd4 {[%clk 0:01:31]}  Rd8 {[%clk 0:02:14]} 17. g4 {[%clk 0:01:29]}  Bf8 {[%clk 0:02:05]} 18. Rad1 {[%clk 0:01:15]}  Nd7 {[%clk 0:02:02]} 19. Nf3 {[%clk 0:01:04]}  Nc5 {[%clk 0:02:01]} 20. d4 {[%clk 0:00:55]}  Na4 {[%clk 0:02:00]} 21. Nxa4 {[%clk 0:00:51]}  Rxa4 {[%clk 0:02:01]} 22. Bd2 {[%clk 0:00:41]}  Be6 {[%clk 0:02:01]} 23. Bc3 {[%clk 0:00:39]}  Re8 {[%clk 0:01:58]} 24. Rfe1 {[%clk 0:00:38]}  Bb3 {[%clk 0:01:58]} 25. Rd2 {[%clk 0:00:36]}  f6 {[%clk 0:01:58]} 26. e5 {[%clk 0:00:30]}  Bd5 {[%clk 0:01:58]} 27. Kf2 {[%clk 0:00:29]}  dxe5 {[%clk 0:01:57]} 28. fxe5 {[%clk 0:00:30]}  fxe5 {[%clk 0:01:57]} 29. Nxe5 {[%clk 0:00:26]}  Be7 {[%clk 0:01:57]} 30. Kg3 {[%clk 0:00:25]}  Bd6 {[%clk 0:01:58]} 31. Rde2 {[%clk 0:00:19]}  Rf8 {[%clk 0:01:56]} 32. Rf2 {[%clk 0:00:18]}  Rxf2 {[%clk 0:01:52]} 33. Kxf2 {[%clk 0:00:19]}  b4 {[%clk 0:01:50]} 34. axb4 {[%clk 0:00:18]}  Bxb4 {[%clk 0:01:50]} 35. Nd3 {[%clk 0:00:17]}  Bd6 {[%clk 0:01:47]} 36. Nc5 {[%clk 0:00:15]}  Ra7 {[%clk 0:01:46]} 37. Nd7 {[%clk 0:00:14]}  b5 {[%clk 0:01:43]} 38. Ne5 {[%clk 0:00:14]}  b4 {[%clk 0:01:43]} 39. Bd2 {[%clk 0:00:14]}  Ra2 {[%clk 0:01:43]} 40. Bc1 {[%clk 0:00:14]}  b3 {[%clk 0:01:38]} 41. Nd3 {[%clk 0:00:14]}  Bc4 {[%clk 0:01:37]} 42. Ne5 {[%clk 0:00:14]}  Bb5 {[%clk 0:01:36]} 43. Kg1 {[%clk 0:00:12]}  Bb4 {[%clk 0:01:35]} 44. Re3 {[%clk 0:00:11]}  Ra1 {[%clk 0:01:35]} 45. Nd3 {[%clk 0:00:07]}  Bxd3 {[%clk 0:01:35]} 46. Rxd3 {[%clk 0:00:07]}  Rxc1+ {[%clk 0:01:35]} 47. Kg2 {[%clk 0:00:07]}  Rc2+ {[%clk 0:01:36]} 0-1


[Site "https://www.chess.com"]

[Event "Titled Tuesday Blitz July 18 Early 2023"]
[White "Golubev, Mikhail"]
[Black "Aravindh, Chithambaram VR."]
[WhiteFideId "14100983"]
[BlackFideId "5072786"]
[WhiteElo "2610"]
[BlackElo "2942"]
[Result "0-1"]
[Round "7"]
[TimeControl "180+2"]
[Date "2023.07.18"]
[WhiteClock "0:00:00"]
[BlackClock "0:01:48"]
[Board "30"]

1. e4 {[%clk 0:03:00]}  c6 {[%clk 0:03:00]} 2. d4 {[%clk 0:02:59]}  d5 {[%clk 0:03:00]} 3. e5 {[%clk 0:02:59]}  c5 {[%clk 0:03:00]} 4. dxc5 {[%clk 0:02:57]}  Nc6 {[%clk 0:03:01]} 5. f4 {[%clk 0:02:55]}  Bf5 {[%clk 0:03:00]} 6. Nf3 {[%clk 0:02:45]}  e6 {[%clk 0:03:01]} 7. Be3 {[%clk 0:02:40]}  Nh6 {[%clk 0:02:59]} 8. c3 {[%clk 0:02:26]}  Ng4 {[%clk 0:02:50]} 9. Bg1 {[%clk 0:02:24]}  h5 {[%clk 0:02:50]} 10. Na3 {[%clk 0:02:11]}  a6 {[%clk 0:02:47]} 11. Nc2 {[%clk 0:02:07]}  Be7 {[%clk 0:02:47]} 12. Ncd4 {[%clk 0:01:57]}  Be4 {[%clk 0:02:46]} 13. Nb3 {[%clk 0:01:14]}  g5 {[%clk 0:02:44]} 14. h3 {[%clk 0:01:09]}  Nh6 {[%clk 0:02:42]} 15. fxg5 {[%clk 0:01:09]}  Bxg5 {[%clk 0:02:43]} 16. Nxg5 {[%clk 0:00:59]}  Qxg5 {[%clk 0:02:44]} 17. Qd2 {[%clk 0:00:59]}  Qxe5 {[%clk 0:02:40]} 18. O-O-O {[%clk 0:00:58]}  Nf5 {[%clk 0:02:38]} 19. Bh2 {[%clk 0:00:46]}  Ng3 {[%clk 0:02:37]} 20. Nd4 {[%clk 0:00:32]}  h4 {[%clk 0:02:35]} 21. Nxc6 {[%clk 0:00:23]}  bxc6 {[%clk 0:02:36]} 22. Bd3 {[%clk 0:00:23]}  f5 {[%clk 0:02:32]} 23. Qg5 {[%clk 0:00:17]}  Kf7 {[%clk 0:02:03]} 24. Bxe4 {[%clk 0:00:15]}  Rag8 {[%clk 0:02:01]} 25. Bxg3 {[%clk 0:00:13]}  Qxe4 {[%clk 0:01:49]} 26. Qf4 {[%clk 0:00:09]}  Rxg3 {[%clk 0:01:46]} 27. Qc7+ {[%clk 0:00:09]}  Kf6 {[%clk 0:01:47]} 28. Rhe1 {[%clk 0:00:08]}  Re3 {[%clk 0:01:47]} 29. Rxe3 {[%clk 0:00:00]}  Qxe3+ {[%clk 0:01:48]} 0-1


[Site "https://www.chess.com"]

[Event "Titled Tuesday Blitz July 18 Early 2023"]
[White "Anton Guijarro, David"]
[Black "Sanchez Alvares, Kelvin Antonio"]
[WhiteFideId "2285525"]
[BlackFideId "3906680"]
[WhiteElo "2918"]
[BlackElo "2610"]
[Result "1-0"]
[Round "7"]
[TimeControl "180+2"]
[Date "2023.07.18"]
[WhiteClock "0:00:27"]
[BlackClock "0:00:04"]
[Board "31"]

1. Nf3 {[%clk 0:03:00]}  Nf6 {[%clk 0:03:00]} 2. b3 {[%clk 0:03:01]}  e6 {[%clk 0:03:00]} 3. Bb2 {[%clk 0:03:01]}  Be7 {[%clk 0:03:00]} 4. g3 {[%clk 0:03:01]}  O-O {[%clk 0:03:00]} 5. Bg2 {[%clk 0:03:02]}  b6 {[%clk 0:02:57]} 6. c4 {[%clk 0:03:00]}  Bb7 {[%clk 0:02:57]} 7. O-O {[%clk 0:02:58]}  c5 {[%clk 0:02:57]} 8. Nc3 {[%clk 0:02:54]}  d6 {[%clk 0:02:52]} 9. Re1 {[%clk 0:02:49]}  a6 {[%clk 0:02:44]} 10. e4 {[%clk 0:02:48]}  Qc7 {[%clk 0:02:44]} 11. Rc1 {[%clk 0:02:45]}  Nbd7 {[%clk 0:02:43]} 12. d4 {[%clk 0:02:38]}  cxd4 {[%clk 0:02:41]} 13. Nxd4 {[%clk 0:02:39]}  Rac8 {[%clk 0:02:37]} 14. f4 {[%clk 0:02:38]}  Qb8 {[%clk 0:02:34]} 15. g4 {[%clk 0:02:37]}  Rfd8 {[%clk 0:02:10]} 16. g5 {[%clk 0:02:35]}  Ne8 {[%clk 0:02:10]} 17. Qg4 {[%clk 0:02:31]}  Nf8 {[%clk 0:02:07]} 18. f5 {[%clk 0:02:25]}  d5 {[%clk 0:01:53]} 19. exd5 {[%clk 0:02:14]}  Bc5 {[%clk 0:01:48]} 20. fxe6 {[%clk 0:02:10]}  fxe6 {[%clk 0:01:47]} 21. Kh1 {[%clk 0:02:01]}  exd5 {[%clk 0:01:39]} 22. Nxd5 {[%clk 0:01:59]}  Ng6 {[%clk 0:01:28]} 23. Ne6 {[%clk 0:01:45]}  Rd6 {[%clk 0:01:21]} 24. Nxc5 {[%clk 0:01:42]}  bxc5 {[%clk 0:01:22]} 25. h4 {[%clk 0:01:27]}  Rcd8 {[%clk 0:01:13]} 26. h5 {[%clk 0:01:23]}  Nf8 {[%clk 0:01:12]} 27. Re7 {[%clk 0:01:20]}  R8d7 {[%clk 0:01:01]} 28. Rce1 {[%clk 0:01:12]}  Rxe7 {[%clk 0:00:51]} 29. Rxe7 {[%clk 0:01:12]}  Qd8 {[%clk 0:00:49]} 30. Qf4 {[%clk 0:00:38]}  Nf6 {[%clk 0:00:12]} 31. gxf6 {[%clk 0:00:35]}  gxf6 {[%clk 0:00:08]} 32. Qg3+ {[%clk 0:00:29]}  Ng6 {[%clk 0:00:06]} 33. hxg6 {[%clk 0:00:27]}  Ba8 {[%clk 0:00:04]} 1-0


[Site "https://www.chess.com"]